[Event "Early-Titled-Tuesday-Blitz-April-23-2024"]
[Site "Chess.com"]
[Date "2024.04.23"]
[Round "10"]
[White "Ural_bogatyr"]
[Black "only_strong_moves"]
[Result "0-1"]
[WhiteElo "2572"]
[BlackElo "2704"]
[TimeControl "180+1"]
[EndTime "9:57:38 PDT"]
[Termination "only_strong_moves won by resignation"]

1. d4 {[%clk 0:02:57]} 1... d5 {[%clk 0:02:59.8]} 2. Nc3 {[%clk 0:02:56.6]} 2...
Nf6 {[%clk 0:02:58.1]} 3. Bf4 {[%clk 0:02:57]} 3... c5 {[%clk 0:02:58.8]} 4. e4
{[%clk 0:02:57.4]} 4... Nxe4 {[%clk 0:02:59.2]} 5. Nxe4 {[%clk 0:02:57.3]} 5...
dxe4 {[%clk 0:03:00.1]} 6. dxc5 {[%clk 0:02:58.2]} 6... Qa5+ {[%clk 0:03:01]} 7.
c3 {[%clk 0:02:58.8]} 7... Qxc5 {[%clk 0:03:01.9]} 8. Qa4+ {[%clk 0:02:59.4]}
8... Nc6 {[%clk 0:03:02.1]} 9. Qxe4 {[%clk 0:02:59.9]} 9... g6 {[%clk
0:03:02.8]} 10. Nf3 {[%clk 0:03:00.1]} 10... Bg7 {[%clk 0:03:03.4]} 11. Qe3
{[%clk 0:03:00.8]} 11... Qxe3+ {[%clk 0:03:02.3]} 12. Bxe3 {[%clk 0:03:01.7]}
12... O-O {[%clk 0:03:02.9]} 13. Be2 {[%clk 0:03:02.2]} 13... Bf5 {[%clk
0:03:03.4]} 14. O-O {[%clk 0:03:02.4]} 14... Rfd8 {[%clk 0:03:04]} 15. Rfd1
{[%clk 0:03:02.4]} 15... e5 {[%clk 0:03:02.5]} 16. Kf1 {[%clk 0:03:01.6]} 16...
a6 {[%clk 0:03:01.9]} 17. Bb6 {[%clk 0:02:59.2]} 17... Re8 {[%clk 0:03:01.6]}
18. Nd2 {[%clk 0:02:53.1]} 18... Ne7 {[%clk 0:02:32.4]} 19. Nc4 {[%clk 0:02:45]}
19... Nc8 {[%clk 0:02:32.2]} 20. Be3 {[%clk 0:02:43.1]} 20... Bf8 {[%clk
0:02:31]} 21. Bf3 {[%clk 0:02:29.5]} 21... Rb8 {[%clk 0:02:30.6]} 22. Nb6 {[%clk
0:02:21.2]} 22... Nd6 {[%clk 0:02:17.4]} 23. Bd5 {[%clk 0:02:07.4]} 23... Red8
{[%clk 0:02:12.4]} 24. f3 {[%clk 0:02:01.5]} 24... Kg7 {[%clk 0:02:11.3]} 25. g4
{[%clk 0:01:53]} 25... Bd7 {[%clk 0:02:02.8]} 26. a4 {[%clk 0:01:44.4]} 26...
Be8 {[%clk 0:02:01.7]} 27. Kf2 {[%clk 0:01:41]} 27... Be7 {[%clk 0:02:00.2]} 28.
Rd2 {[%clk 0:01:32.6]} 28... f5 {[%clk 0:01:59.7]} 29. gxf5 {[%clk 0:01:30.4]}
29... Nxf5 {[%clk 0:02:00.6]} 30. a5 {[%clk 0:01:23.8]} 30... Nxe3 {[%clk
0:01:48.3]} 31. Kxe3 {[%clk 0:01:24.7]} 31... Bg5+ {[%clk 0:01:48.1]} 0-1

[Event "Early-Titled-Tuesday-Blitz-April-23-2024"]
[Site "Chess.com"]
[Date "2024.04.23"]
[Round "10"]
[White "Eliwood44"]
[Black "Sofia_Blokhin"]
[Result "0-1"]
[WhiteElo "2452"]
[BlackElo "2290"]
[TimeControl "180+1"]
[EndTime "9:57:38 PDT"]
[Termination "Sofia_Blokhin won by checkmate"]

1. d4 {[%clk 0:03:00.9]} 1... f5 {[%clk 0:02:59.4]} 2. e4 {[%clk 0:02:50.8]}
2... fxe4 {[%clk 0:02:58.9]} 3. Nc3 {[%clk 0:02:47.4]} 3... Nf6 {[%clk
0:02:57.4]} 4. Bg5 {[%clk 0:02:47.1]} 4... c6 {[%clk 0:02:57.3]} 5. f3 {[%clk
0:02:44.1]} 5... d5 {[%clk 0:02:44.7]} 6. fxe4 {[%clk 0:02:42.5]} 6... dxe4
{[%clk 0:02:44.6]} 7. Bc4 {[%clk 0:02:39.2]} 7... b5 {[%clk 0:02:34.1]} 8. Bb3
{[%clk 0:02:38.8]} 8... b4 {[%clk 0:02:32.2]} 9. Na4 {[%clk 0:02:38.9]} 9... e6
{[%clk 0:02:16.9]} 10. Ne2 {[%clk 0:02:37.5]} 10... Be7 {[%clk 0:02:13.9]} 11.
O-O {[%clk 0:02:36.6]} 11... O-O {[%clk 0:02:12.5]} 12. c3 {[%clk 0:02:36.7]}
12... Kh8 {[%clk 0:02:08.2]} 13. Kh1 {[%clk 0:02:35.5]} 13... Ng4 {[%clk
0:01:59.6]} 14. Rxf8+ {[%clk 0:02:18.5]} 14... Qxf8 {[%clk 0:01:58.5]} 15. Bxe7
{[%clk 0:02:18]} 15... Qxe7 {[%clk 0:01:47]} 16. Qg1 {[%clk 0:02:17.9]} 16... e3
{[%clk 0:01:40.9]} 17. h3 {[%clk 0:02:17.1]} 17... Nf2+ {[%clk 0:01:28.5]} 18.
Kh2 {[%clk 0:02:16.7]} 18... Qh4 {[%clk 0:01:22.4]} 19. Qf1 {[%clk 0:02:00.4]}
19... e5 {[%clk 0:01:17.9]} 20. dxe5 {[%clk 0:01:58.3]} 20... Nd7 {[%clk
0:01:00.5]} 21. e6 {[%clk 0:01:51.8]} 21... Ne5 {[%clk 0:01:00.4]} 22. Ng1
{[%clk 0:01:43.4]} 22... Neg4# {[%clk 0:00:58.6]} 0-1

[Event "Early-Titled-Tuesday-Blitz-April-23-2024"]
[Site "Chess.com"]
[Date "2024.04.23"]
[Round "10"]
[White "Raskolnikov6"]
[Black "hongnhung1234"]
[Result "1-0"]
[WhiteElo "2404"]
[BlackElo "2526"]
[TimeControl "180+1"]
[EndTime "9:57:41 PDT"]
[Termination "Raskolnikov6 won by resignation"]

1. d4 {[%clk 0:02:55]} 1... Nf6 {[%clk 0:02:58.8]} 2. c4 {[%clk 0:02:53.8]} 2...
c5 {[%clk 0:02:58.4]} 3. d5 {[%clk 0:02:53.8]} 3... e6 {[%clk 0:02:58.1]} 4. Nc3
{[%clk 0:02:53.4]} 4... exd5 {[%clk 0:02:57.9]} 5. cxd5 {[%clk 0:02:54.3]} 5...
d6 {[%clk 0:02:58.2]} 6. e4 {[%clk 0:02:54.6]} 6... g6 {[%clk 0:02:58.4]} 7. f4
{[%clk 0:02:52.1]} 7... Bg7 {[%clk 0:02:58.1]} 8. Bb5+ {[%clk 0:02:52.7]} 8...
Nbd7 {[%clk 0:02:56.7]} 9. e5 {[%clk 0:02:50.3]} 9... dxe5 {[%clk 0:02:54.3]}
10. fxe5 {[%clk 0:02:51.2]} 10... Qe7 {[%clk 0:02:54.2]} 11. Qe2 {[%clk
0:02:43.5]} 11... Nh5 {[%clk 0:02:23.4]} 12. e6 {[%clk 0:02:36.7]} 12... O-O
{[%clk 0:02:10.3]} 13. exd7 {[%clk 0:02:35.8]} 13... Qh4+ {[%clk 0:02:10.3]} 14.
Qf2 {[%clk 0:02:27.4]} 14... Qe7+ {[%clk 0:02:04.3]} 15. Nge2 {[%clk 0:02:19.9]}
15... Bxd7 {[%clk 0:02:03.2]} 16. Bxd7 {[%clk 0:02:20.2]} 16... Qxd7 {[%clk
0:02:04.1]} 17. O-O {[%clk 0:02:19.6]} 17... b5 {[%clk 0:02:02.8]} 18. Qxc5
{[%clk 0:02:12.7]} 18... a6 {[%clk 0:01:59.7]} 19. Be3 {[%clk 0:01:40.9]} 19...
Rac8 {[%clk 0:01:56.3]} 20. Qa7 {[%clk 0:01:41.1]} 20... Qd6 {[%clk 0:01:55.8]}
21. Rad1 {[%clk 0:01:27.2]} 21... Be5 {[%clk 0:01:51.7]} 22. g3 {[%clk
0:01:17.1]} 22... f5 {[%clk 0:01:42.2]} 23. Qb6 {[%clk 0:01:16.8]} 23... Qb4
{[%clk 0:01:40]} 24. Qe6+ {[%clk 0:01:16]} 1-0

[Event "Early-Titled-Tuesday-Blitz-April-23-2024"]
[Site "Chess.com"]
[Date "2024.04.23"]
[Round "10"]
[White "GlennTipton"]
[Black "AlainBruxelles"]
[Result "1-0"]
[WhiteElo "2500"]
[BlackElo "2357"]
[TimeControl "180+1"]
[EndTime "9:57:45 PDT"]
[Termination "GlennTipton won by resignation"]

1. e4 {[%clk 0:03:00.2]} 1... c5 {[%clk 0:02:59.5]} 2. Nf3 {[%clk 0:03:00]} 2...
d6 {[%clk 0:02:59.6]} 3. d4 {[%clk 0:02:55.4]} 3... cxd4 {[%clk 0:02:59.9]} 4.
Nxd4 {[%clk 0:02:54.9]} 4... Nf6 {[%clk 0:03:00.2]} 5. Nc3 {[%clk 0:02:55.1]}
5... Nc6 {[%clk 0:03:00.7]} 6. Bc4 {[%clk 0:02:54.8]} 6... e6 {[%clk 0:03:00.1]}
7. Be3 {[%clk 0:02:54]} 7... a6 {[%clk 0:02:58.9]} 8. Qe2 {[%clk 0:02:53.8]}
8... Bd7 {[%clk 0:02:59.2]} 9. O-O-O {[%clk 0:02:47.9]} 9... Qc7 {[%clk
0:02:58.6]} 10. Rhg1 {[%clk 0:02:43.8]} 10... b5 {[%clk 0:02:55.8]} 11. Bb3
{[%clk 0:02:40.4]} 11... b4 {[%clk 0:02:53.3]} 12. Na4 {[%clk 0:02:39.6]} 12...
Nxe4 {[%clk 0:02:37.9]} 13. Nxe6 {[%clk 0:02:23.3]} 13... fxe6 {[%clk
0:02:32.7]} 14. Bb6 {[%clk 0:02:22.4]} 14... Qb8 {[%clk 0:02:25.1]} 15. Qxe4
{[%clk 0:02:21.1]} 15... Ne5 {[%clk 0:02:24.8]} 16. Bc7 {[%clk 0:02:12]} 16...
Qa7 {[%clk 0:02:08.3]} 17. Bxd6 {[%clk 0:02:10.1]} 17... Bxd6 {[%clk 0:01:51.1]}
18. Rxd6 {[%clk 0:02:08.2]} 18... Nf7 {[%clk 0:01:51.8]} 19. Rxe6+ {[%clk
0:01:50.3]} 19... Bxe6 {[%clk 0:01:49.3]} 20. Qxe6+ {[%clk 0:01:51.2]} 20... Kf8
{[%clk 0:01:48.9]} 21. Nb6 {[%clk 0:01:12.4]} 21... Re8 {[%clk 0:01:45.4]} 22.
Nd7+ {[%clk 0:01:11.5]} 1-0

[Event "Early-Titled-Tuesday-Blitz-April-23-2024"]
[Site "Chess.com"]
[Date "2024.04.23"]
[Round "10"]
[White "wqws"]
[Black "NigiriSushies"]
[Result "0-1"]
[WhiteElo "2675"]
[BlackElo "2459"]
[TimeControl "180+1"]
[EndTime "9:57:56 PDT"]
[Termination "NigiriSushies won by resignation"]

1. e4 {[%clk 0:02:59.9]} 1... c5 {[%clk 0:03:00]} 2. Nf3 {[%clk 0:02:59.2]} 2...
d6 {[%clk 0:03:00.1]} 3. d4 {[%clk 0:02:59]} 3... cxd4 {[%clk 0:03:01]} 4. Nxd4
{[%clk 0:02:59.4]} 4... Nf6 {[%clk 0:03:01.9]} 5. Nc3 {[%clk 0:02:59.2]} 5... a6
{[%clk 0:03:02.8]} 6. Bg5 {[%clk 0:02:59.1]} 6... e6 {[%clk 0:03:02.6]} 7. f4
{[%clk 0:02:59]} 7... h6 {[%clk 0:03:02]} 8. Bh4 {[%clk 0:02:58.7]} 8... Qb6
{[%clk 0:03:01.5]} 9. a3 {[%clk 0:02:58.1]} 9... Be7 {[%clk 0:02:58.6]} 10. Bf2
{[%clk 0:02:57.3]} 10... Qc7 {[%clk 0:02:56.9]} 11. Qf3 {[%clk 0:02:56.8]} 11...
Nbd7 {[%clk 0:02:57.1]} 12. O-O-O {[%clk 0:02:56.5]} 12... b5 {[%clk 0:02:57.5]}
13. g4 {[%clk 0:02:55]} 13... Bb7 {[%clk 0:02:57.7]} 14. h4 {[%clk 0:02:52.2]}
14... Nc5 {[%clk 0:02:57.4]} 15. Bd3 {[%clk 0:02:51.3]} 15... d5 {[%clk
0:02:57.3]} 16. e5 {[%clk 0:02:50.5]} 16... Nfe4 {[%clk 0:02:57.3]} 17. Bxe4
{[%clk 0:02:47.6]} 17... Nxe4 {[%clk 0:02:57.3]} 18. Nxe4 {[%clk 0:02:47.3]}
18... dxe4 {[%clk 0:02:58.2]} 19. Qe3 {[%clk 0:02:47.6]} 19... Rc8 {[%clk
0:02:54.9]} 20. Kb1 {[%clk 0:02:43.8]} 20... Bd5 {[%clk 0:02:53.1]} 21. Rd2
{[%clk 0:02:25.2]} 21... b4 {[%clk 0:02:50.5]} 22. a4 {[%clk 0:02:23.4]} 22...
Qc4 {[%clk 0:02:44.9]} 23. Nb3 {[%clk 0:02:22.8]} 23... Bc5 {[%clk 0:02:44.3]}
24. Rd4 {[%clk 0:01:42.2]} 24... Bxd4 {[%clk 0:02:43]} 25. Nxd4 {[%clk
0:01:43.1]} 25... Qa2+ {[%clk 0:02:42.2]} 26. Kc1 {[%clk 0:01:43]} 26... Qa1+
{[%clk 0:02:42.2]} 27. Kd2 {[%clk 0:01:43.7]} 27... Qxh1 {[%clk 0:02:42.7]} 28.
f5 {[%clk 0:01:44.4]} 28... Qg2 {[%clk 0:02:32.6]} 29. Qf4 {[%clk 0:01:40.7]}
29... e3+ {[%clk 0:02:28]} 30. Kxe3 {[%clk 0:01:39.2]} 30... O-O {[%clk
0:02:21.3]} 31. f6 {[%clk 0:01:39]} 31... gxf6 {[%clk 0:02:07.6]} 32. exf6
{[%clk 0:01:10]} 32... e5 {[%clk 0:02:06]} 33. Qxh6 {[%clk 0:01:08.3]} 33...
exd4+ {[%clk 0:02:04.9]} 34. Kd3 {[%clk 0:01:04.8]} 34... Qe4+ {[%clk
0:02:02.7]} 35. Kd2 {[%clk 0:01:04.7]} 35... Rxc2+ {[%clk 0:02:03.6]} 0-1

[Event "Early-Titled-Tuesday-Blitz-April-23-2024"]
[Site "Chess.com"]
[Date "2024.04.23"]
[Round "10"]
[White "RantomOpening"]
[Black "SahibSinghKnight"]
[Result "1/2-1/2"]
[WhiteElo "2527"]
[BlackElo "2635"]
[TimeControl "180+1"]
[EndTime "9:58:08 PDT"]
[Termination "Game drawn by repetition"]

1. c4 {[%clk 0:03:00.9]} 1... e5 {[%clk 0:02:59.2]} 2. Nc3 {[%clk 0:03:00.2]}
2... d6 {[%clk 0:02:57.6]} 3. Nf3 {[%clk 0:03:00.3]} 3... Nc6 {[%clk 0:02:57.4]}
4. e3 {[%clk 0:02:59.6]} 4... f5 {[%clk 0:02:57.1]} 5. d4 {[%clk 0:02:56.7]}
5... e4 {[%clk 0:02:57.3]} 6. Ng1 {[%clk 0:02:57.3]} 6... Nf6 {[%clk 0:02:57.6]}
7. h4 {[%clk 0:02:57.5]} 7... g6 {[%clk 0:02:54.7]} 8. Nge2 {[%clk 0:02:57.7]}
8... Bg7 {[%clk 0:02:54.2]} 9. Nf4 {[%clk 0:02:58.1]} 9... O-O {[%clk
0:02:54.5]} 10. g3 {[%clk 0:02:57.6]} 10... Ne7 {[%clk 0:02:53.3]} 11. Be2
{[%clk 0:02:56.4]} 11... c6 {[%clk 0:02:53]} 12. b3 {[%clk 0:02:47.4]} 12... h6
{[%clk 0:02:53]} 13. Ba3 {[%clk 0:02:44.5]} 13... Kh7 {[%clk 0:02:49.9]} 14. Qd2
{[%clk 0:02:42]} 14... b6 {[%clk 0:02:46.9]} 15. c5 {[%clk 0:02:38.8]} 15...
bxc5 {[%clk 0:02:43.5]} 16. dxc5 {[%clk 0:02:39.7]} 16... Nfd5 {[%clk
0:02:41.8]} 17. Ncxd5 {[%clk 0:02:30.5]} 17... Nxd5 {[%clk 0:02:39.5]} 18. Bb2
{[%clk 0:02:24.5]} 18... Bxb2 {[%clk 0:02:38]} 19. Qxb2 {[%clk 0:02:25.4]} 19...
Qa5+ {[%clk 0:02:38.4]} 20. Qd2 {[%clk 0:02:18.3]} 20... Qxd2+ {[%clk
0:02:32.6]} 21. Kxd2 {[%clk 0:02:19.2]} 21... dxc5 {[%clk 0:02:30.1]} 22. Nxd5
{[%clk 0:02:19.1]} 22... cxd5 {[%clk 0:02:31]} 23. Rac1 {[%clk 0:02:03.8]} 23...
c4 {[%clk 0:02:27]} 24. bxc4 {[%clk 0:02:03]} 24... Be6 {[%clk 0:02:26.9]} 25.
cxd5 {[%clk 0:02:01.9]} 25... Bxd5 {[%clk 0:02:27.2]} 26. Rc7+ {[%clk
0:02:01.8]} 26... Rf7 {[%clk 0:02:27.2]} 27. Rc2 {[%clk 0:01:40.5]} 27... Rd8
{[%clk 0:02:24.2]} 28. Ke1 {[%clk 0:01:34.3]} 28... Rb7 {[%clk 0:02:23.5]} 29.
Kf1 {[%clk 0:01:33.6]} 29... Rdb8 {[%clk 0:02:20.6]} 30. Kg2 {[%clk 0:01:32.8]}
30... Rb2 {[%clk 0:02:21.1]} 31. Rhc1 {[%clk 0:01:32.8]} 31... Bxa2 {[%clk
0:02:10.9]} 32. Rxb2 {[%clk 0:01:31.2]} 32... Rxb2 {[%clk 0:02:10.3]} 33. Rc7+
{[%clk 0:01:31.5]} 33... Kg8 {[%clk 0:02:09.2]} 34. Bd1 {[%clk 0:01:18.8]} 34...
a6 {[%clk 0:02:03.7]} 35. Rc6 {[%clk 0:01:17.9]} 35... Kg7 {[%clk 0:02:01.1]}
36. Rxa6 {[%clk 0:01:15.5]} 36... Rd2 {[%clk 0:02:00.2]} 37. Ra7+ {[%clk
0:01:14.8]} 37... Kf6 {[%clk 0:02:00.3]} 38. Ra6+ {[%clk 0:01:14.2]} 38... Kg7
{[%clk 0:02:00.5]} 39. Ra7+ {[%clk 0:01:08.9]} 39... Kf6 {[%clk 0:02:00.3]} 40.
Ra6+ {[%clk 0:01:06.4]} 40... Kg7 {[%clk 0:01:59.2]} 1/2-1/2

[Event "Early-Titled-Tuesday-Blitz-April-23-2024"]
[Site "Chess.com"]
[Date "2024.04.23"]
[Round "10"]
[White "lamomiajunior"]
[Black "artin10862"]
[Result "1-0"]
[WhiteElo "2752"]
[BlackElo "2908"]
[TimeControl "180+1"]
[EndTime "9:58:15 PDT"]
[Termination "lamomiajunior won by resignation"]

1. d4 {[%clk 0:03:00.9]} 1... Nf6 {[%clk 0:02:56.2]} 2. Nc3 {[%clk 0:03:01.6]}
2... g6 {[%clk 0:02:47.4]} 3. e4 {[%clk 0:03:00.9]} 3... d6 {[%clk 0:02:47.8]}
4. Be3 {[%clk 0:03:00.8]} 4... Bg7 {[%clk 0:02:47.7]} 5. Qd2 {[%clk 0:03:00.8]}
5... h5 {[%clk 0:02:34.8]} 6. f3 {[%clk 0:02:57.7]} 6... a6 {[%clk 0:02:34.6]}
7. a4 {[%clk 0:02:57.7]} 7... b6 {[%clk 0:02:33.7]} 8. Bc4 {[%clk 0:02:57.5]}
8... Bb7 {[%clk 0:02:33.6]} 9. Nge2 {[%clk 0:02:57.9]} 9... Nbd7 {[%clk
0:02:33.4]} 10. h4 {[%clk 0:02:57.7]} 10... e6 {[%clk 0:02:31.5]} 11. Nf4 {[%clk
0:02:49.2]} 11... Qe7 {[%clk 0:02:26.8]} 12. O-O-O {[%clk 0:02:47.3]} 12... b5
{[%clk 0:02:21]} 13. Bb3 {[%clk 0:02:40.5]} 13... O-O {[%clk 0:02:11.8]} 14. g4
{[%clk 0:02:38.9]} 14... hxg4 {[%clk 0:02:03.6]} 15. h5 {[%clk 0:02:39.1]} 15...
b4 {[%clk 0:02:00]} 16. h6 {[%clk 0:02:19.8]} 16... bxc3 {[%clk 0:01:50.7]} 17.
Qh2 {[%clk 0:02:19.7]} 17... cxb2+ {[%clk 0:01:37]} 18. Kb1 {[%clk 0:02:19.8]}
18... g3 {[%clk 0:00:59.8]} 19. Qh3 {[%clk 0:02:06.4]} 19... Nh5 {[%clk
0:00:27.9]} 20. hxg7 {[%clk 0:01:58.4]} 20... Rfe8 {[%clk 0:00:22.7]} 21. Nxh5
{[%clk 0:01:58.1]} 21... gxh5 {[%clk 0:00:23]} 22. Qxh5 {[%clk 0:01:57.1]} 22...
f6 {[%clk 0:00:23.6]} 23. Qh7+ {[%clk 0:01:55]} 1-0

[Event "Early-Titled-Tuesday-Blitz-April-23-2024"]
[Site "Chess.com"]
[Date "2024.04.23"]
[Round "10"]
[White "Stanbad1"]
[Black "szachuspl"]
[Result "1-0"]
[WhiteElo "2646"]
[BlackElo "2530"]
[TimeControl "180+1"]
[EndTime "9:58:25 PDT"]
[Termination "Stanbad1 won by resignation"]

1. d4 {[%clk 0:03:00.9]} 1... Nf6 {[%clk 0:02:58.9]} 2. Nc3 {[%clk 0:03:00.7]}
2... d5 {[%clk 0:02:58.5]} 3. Bf4 {[%clk 0:03:00.7]} 3... c5 {[%clk 0:02:51.7]}
4. e4 {[%clk 0:03:00.3]} 4... Nxe4 {[%clk 0:02:41.6]} 5. Nxe4 {[%clk 0:02:59]}
5... dxe4 {[%clk 0:02:42]} 6. dxc5 {[%clk 0:02:59.9]} 6... Qxd1+ {[%clk
0:02:40.5]} 7. Rxd1 {[%clk 0:03:00.8]} 7... Nc6 {[%clk 0:02:41]} 8. Bc4 {[%clk
0:02:59.5]} 8... e5 {[%clk 0:02:39.4]} 9. Be3 {[%clk 0:02:59.1]} 9... f5 {[%clk
0:02:39.5]} 10. g3 {[%clk 0:02:58.4]} 10... Be7 {[%clk 0:02:35.9]} 11. Ne2
{[%clk 0:02:57.4]} 11... Bd7 {[%clk 0:02:36.1]} 12. Nc3 {[%clk 0:02:57.3]} 12...
O-O-O {[%clk 0:02:31.6]} 13. O-O {[%clk 0:02:51.4]} 13... g5 {[%clk 0:02:21.3]}
14. Nd5 {[%clk 0:02:48.5]} 14... f4 {[%clk 0:02:21.2]} 15. Bd2 {[%clk 0:02:46]}
15... Bxc5 {[%clk 0:02:19.7]} 16. b4 {[%clk 0:02:45.9]} 16... Bd6 {[%clk
0:02:14.7]} 17. Bc3 {[%clk 0:02:45.8]} 17... Bh3 {[%clk 0:01:50]} 18. Rfe1
{[%clk 0:02:42.6]} 18... Nd4 {[%clk 0:01:44.9]} 19. Bxd4 {[%clk 0:02:40.1]}
19... exd4 {[%clk 0:01:45]} 20. Rxe4 {[%clk 0:02:39.9]} 20... Rhe8 {[%clk
0:01:38.2]} 21. Rexd4 {[%clk 0:02:36.3]} 21... Bxb4 {[%clk 0:01:27]} 22. Bf1
{[%clk 0:02:32]} 22... Bxf1 {[%clk 0:01:24.6]} 23. Kxf1 {[%clk 0:02:31.9]} 23...
Bc5 {[%clk 0:01:21]} 24. R4d3 {[%clk 0:02:26.4]} 24... fxg3 {[%clk 0:01:16.4]}
25. hxg3 {[%clk 0:02:24.8]} 25... b6 {[%clk 0:01:15.4]} 26. Nf6 {[%clk
0:02:23.6]} 26... Rxd3 {[%clk 0:01:12.2]} 27. cxd3 {[%clk 0:02:15.2]} 27... Re7
{[%clk 0:01:12.4]} 28. d4 {[%clk 0:02:15]} 28... Bd6 {[%clk 0:01:08.1]} 29. Rc1+
{[%clk 0:02:14.3]} 29... Kb7 {[%clk 0:01:06.3]} 30. Rc3 {[%clk 0:02:07.1]} 30...
b5 {[%clk 0:01:01.5]} 31. Rb3 {[%clk 0:02:06.2]} 31... Kb6 {[%clk 0:01:00.9]}
32. Nd5+ {[%clk 0:02:05.2]} 32... Kc6 {[%clk 0:00:58.4]} 33. Nxe7+ {[%clk
0:02:06.1]} 33... Bxe7 {[%clk 0:00:58.7]} 34. Re3 {[%clk 0:02:06.3]} 34... Bd6
{[%clk 0:00:58.3]} 35. Re8 {[%clk 0:02:06.2]} 35... a5 {[%clk 0:00:54.4]} 36.
Rh8 {[%clk 0:02:06.2]} 36... Kd5 {[%clk 0:00:53.9]} 37. Rxh7 {[%clk 0:02:06.5]}
37... a4 {[%clk 0:00:53.7]} 38. Rg7 {[%clk 0:02:06.7]} 38... b4 {[%clk
0:00:52.8]} 39. Rxg5+ {[%clk 0:02:06.7]} 39... Kc4 {[%clk 0:00:52.8]} 40. Ke2
{[%clk 0:02:04.6]} 40... b3 {[%clk 0:00:51.8]} 41. axb3+ {[%clk 0:02:04.6]}
41... axb3 {[%clk 0:00:52.3]} 42. Kd2 {[%clk 0:02:04.5]} 42... Kxd4 {[%clk
0:00:47.9]} 43. Rb5 {[%clk 0:02:03.4]} 1-0

[Event "Early-Titled-Tuesday-Blitz-April-23-2024"]
[Site "Chess.com"]
[Date "2024.04.23"]
[Round "10"]
[White "RodTwinkz"]
[Black "giovannibrandao7"]
[Result "1-0"]
[WhiteElo "2699"]
[BlackElo "2363"]
[TimeControl "180+1"]
[EndTime "9:58:27 PDT"]
[Termination "RodTwinkz won by resignation"]

1. e4 {[%clk 0:03:00.9]} 1... c5 {[%clk 0:02:59.9]} 2. Nc3 {[%clk 0:03:00.3]}
2... d6 {[%clk 0:02:59.4]} 3. f4 {[%clk 0:03:00.6]} 3... Nc6 {[%clk 0:02:59.6]}
4. Nf3 {[%clk 0:03:01]} 4... e6 {[%clk 0:03:00.2]} 5. g3 {[%clk 0:03:00.6]} 5...
g6 {[%clk 0:02:56.7]} 6. Bg2 {[%clk 0:03:00.1]} 6... Bg7 {[%clk 0:02:57.2]} 7.
O-O {[%clk 0:03:00.8]} 7... Nge7 {[%clk 0:02:57.7]} 8. d3 {[%clk 0:03:00.9]}
8... O-O {[%clk 0:02:58.2]} 9. g4 {[%clk 0:03:01.4]} 9... d5 {[%clk 0:02:48.3]}
10. e5 {[%clk 0:03:00.2]} 10... d4 {[%clk 0:02:44.4]} 11. Ne4 {[%clk 0:02:59.7]}
11... Nd5 {[%clk 0:02:08]} 12. g5 {[%clk 0:02:55.7]} 12... Nce7 {[%clk
0:01:16.2]} 13. Nf6+ {[%clk 0:02:46.5]} 13... Kh8 {[%clk 0:01:12]} 14. Nh4
{[%clk 0:02:45.4]} 14... Bxf6 {[%clk 0:01:01.1]} 15. gxf6 {[%clk 0:02:38.7]}
15... Nf5 {[%clk 0:01:01.7]} 16. Nxf5 {[%clk 0:02:37.4]} 16... exf5 {[%clk
0:01:02.6]} 17. Qf3 {[%clk 0:02:31.8]} 17... Nc7 {[%clk 0:00:16.5]} 18. Qh3
{[%clk 0:02:25.4]} 18... Ne6 {[%clk 0:00:16.7]} 19. Rf3 {[%clk 0:02:12.7]} 19...
Rg8 {[%clk 0:00:16.7]} 20. Qxh7+ {[%clk 0:01:39.2]} 1-0

[Event "Early-Titled-Tuesday-Blitz-April-23-2024"]
[Site "Chess.com"]
[Date "2024.04.23"]
[Round "10"]
[White "Zavgorodniy_Sergiy"]
[Black "RamonManon0g"]
[Result "1-0"]
[WhiteElo "2591"]
[BlackElo "2461"]
[TimeControl "180+1"]
[EndTime "9:58:35 PDT"]
[Termination "Zavgorodniy_Sergiy won by resignation"]

1. d4 {[%clk 0:03:00.9]} 1... Nf6 {[%clk 0:02:58.3]} 2. Nc3 {[%clk 0:02:57.6]}
2... d5 {[%clk 0:02:57.3]} 3. Bf4 {[%clk 0:02:53.2]} 3... c6 {[%clk 0:02:54.6]}
4. e3 {[%clk 0:02:43.3]} 4... g6 {[%clk 0:02:50.7]} 5. Nf3 {[%clk 0:02:40.5]}
5... Bg7 {[%clk 0:02:50.5]} 6. Bd3 {[%clk 0:02:34.9]} 6... O-O {[%clk
0:02:50.7]} 7. O-O {[%clk 0:02:34.9]} 7... Qb6 {[%clk 0:02:44.7]} 8. Rb1 {[%clk
0:02:27.8]} 8... Na6 {[%clk 0:02:43.5]} 9. a3 {[%clk 0:02:11.2]} 9... Bd7 {[%clk
0:02:33.6]} 10. h3 {[%clk 0:02:09.6]} 10... c5 {[%clk 0:02:33.8]} 11. Be5 {[%clk
0:02:02.6]} 11... c4 {[%clk 0:02:29.2]} 12. Be2 {[%clk 0:02:01]} 12... Nc7
{[%clk 0:02:15.4]} 13. Re1 {[%clk 0:01:46.2]} 13... Qc6 {[%clk 0:01:57.5]} 14.
Bh2 {[%clk 0:01:42.7]} 14... Be6 {[%clk 0:01:51.4]} 15. Ne5 {[%clk 0:01:37.9]}
15... Qb6 {[%clk 0:01:45.8]} 16. Na4 {[%clk 0:01:28.4]} 16... Qa5 {[%clk
0:01:45.5]} 17. Nc5 {[%clk 0:01:28.1]} 17... Qb6 {[%clk 0:01:36.4]} 18. b3
{[%clk 0:01:23]} 18... Qc6 {[%clk 0:01:25.6]} 19. bxc4 {[%clk 0:01:20.8]} 19...
dxc4 {[%clk 0:01:26.5]} 20. Bf3 {[%clk 0:01:16.1]} 20... Ncd5 {[%clk 0:01:23.7]}
21. e4 {[%clk 0:01:14.8]} 21... Nc3 {[%clk 0:01:23.2]} 22. Qd2 {[%clk
0:01:08.8]} 22... Nxb1 {[%clk 0:01:23.5]} 23. Rxb1 {[%clk 0:01:09.4]} 23... b6
{[%clk 0:01:18.1]} 24. Nxc6 {[%clk 0:01:01.1]} 24... bxc5 {[%clk 0:01:17.2]} 25.
d5 {[%clk 0:00:59.4]} 25... Bd7 {[%clk 0:01:12.2]} 26. Nxe7+ {[%clk 0:00:57.2]}
26... Kh8 {[%clk 0:01:12.6]} 27. e5 {[%clk 0:00:57.7]} 1-0